bitfinex-derivatives/quotes_SOLF0:USTF0_20241203
["timestamp","ask_amount","ask_price","bid_price","bid_amount"]
[1733233804699,20.62132805,221.95,221.85,1.12772582]
[1733233805015,20.62132805,221.95,221.86,1.12772582]
[1733233805299,20.62132805,221.95,221.83,1.804503]
[1733233805300,20.62132805,221.91,221.83,1.804503]
[1733233805502,6.0233,221.9,221.74,0.37589111]
[1733233805696,20.62132805,221.87,221.75,8.32661028]
[1733233805896,20.62132805,221.83,221.76,1.12787826]
[1733233806091,20.62132805,221.83,221.77,1.12787826]
[1733233806092,2.2541,221.78,221.77,1.12787826]
[1733233806304,2.2541,221.78,221.7,0.37589111]
[1733233806305,3.22,221.82,221.66,2.6713]
[1733233806496,20.62132805,221.79,221.66,1.297]
[1733233806695,20.62132805,221.79,221.62,3.22]
[1733233806894,20.62132805,221.7,221.56,0.37589111]
[1733233807198,3.22,221.69,221.57,4.26939715]
[1733233807499,2.2559,221.61,221.52,20.62132805]
[1733233807699,33.58327971,221.68,221.51,1.2905]
[1733233808307,1.2826,221.75,221.51,1.2905]
[1733233808505,2.2559,221.61,221.51,1.2905]
[1733233808706,3.22,221.67,221.53,33.58327971]
[1733233808902,3.22,221.7,221.53,33.58327971]
[1733233809102,1.2826,221.75,221.57,33.58327971]
[1733233809103,3.22,221.71,221.57,33.58327971]
[1733233809301,3.22,221.72,221.57,33.58327971]
[1733233809703,3.22,221.72,221.54,3.22]
[1733233810100,2.2549,221.71,221.57,33.58327971]
[1733233810299,33.58327971,221.76,221.57,33.58327971]
[1733233810503,3.22,221.75,221.61,33.58327971]
[1733233810707,3.22,221.75,221.62,2.7871]
[1733233811506,1.3946,221.85,221.66,33.58327971]
[1733233811507,341.02583581,221.84,221.66,33.58327971]
[1733233811801,33.58327971,221.8,221.67,1.3745]
[1733233812007,308.7051561,221.84,221.67,1.3745]
[1733233812305,304.2225561,221.84,221.69,33.58327971]
[1733233812601,2.2537,221.82,221.72,2.2547]
[1733233812905,33.58327971,221.85,221.67,1.3745]
[1733233813098,2.2535,221.84,221.69,33.58327971]
[1733233813802,304.2225561,221.92,221.77,33.58327971]
[1733233814004,304.2225561,221.92,221.81,33.58327971]
[1733233814303,304.2225561,221.99,221.85,33.58327971]
[1733233814497,304.2225561,221.99,221.86,3.22]
[1733233814700,398.65034704,222.06,221.89,33.58327971]
[1733233814701,669.28962343,222.06,221.89,33.58327971]
[1733233814901,669.28962343,222.06,221.97,33.58327971]
[1733233815100,304.2225561,222.06,221.98,3.22]
[1733233815299,304.2225561,222.06,222.02,35.83487971]
[1733233815300,297.8426561,222.06,222.02,35.83487971]
[1733233815499,2.2508,222.11,222.02,33.58327971]
[1733233815704,365.06706733,222.16,222.03,3.22]
[1733233815903,365.06706733,222.16,222.03,36.80327971]
[1733233816105,365.06706733,222.16,222.07,33.58327971]
[1733233816404,365.06706733,222.16,222.08,3.22]
[1733233816606,33.58327971,222.25,222.03,33.58327971]
[1733233816803,33.58327971,222.21,222.04,3.26]
[1733233817210,3.26,222.23,222.04,3.26]
[1733233817508,307.59170358,222.24,222.07,33.58327971]
[1733233817804,307.59170358,222.24,222.09,2.2509]
[1733233818504,33.58327971,222.22,222.03,33.58327971]
[1733233818710,3.26,222.21,222.04,3.26]
[1733233818907,33.58327971,222.18,222.04,3.26]
[1733233819109,3.26,222.21,221.94,33.58327971]
[1733233819110,33.58327971,222.13,221.94,33.58327971]
[1733233819309,33.58327971,222.09,221.9,33.58327971]
[1733233819507,33.58327971,222.09,221.87,3.26]
[1733233819508,3.26,222.1,221.94,33.58327971]
[1733233819702,33.58327971,222.17,221.98,33.58327971]
[1733233820009,3.26,222.19,222.02,33.58327971]
[1733233820203,307.59170358,222.24,222.06,33.58327971]
[1733233820406,307.59170358,222.24,222.02,3.26]
[1733233820407,307.59170358,222.24,222.14,2.2504]
[1733233820603,2.6588,222.28,222.14,3.26]
[1733233820803,2.6588,222.28,222.08,3.26]
[1733233821003,5.9188,222.28,222.1,33.58327971]
[1733233821208,341.17498329,222.31,222.14,33.58327971]
[1733233821411,341.17498329,222.31,222.09,33.58327971]
[1733233821605,2.2495,222.24,222.09,33.58327971]
[1733233821912,33.58327971,222.21,222.05,33.58327971]
[1733233822112,33.58327971,222.21,222.01,36.84327971]
[1733233822412,33.58327971,222.17,222.01,36.84327971]
[1733233822607,2.2508,222.11,222.01,3.26]
[1733233822813,3.26,222.16,222.01,3.26]
[1733233823012,33.58327971,222.13,221.93,33.58327971]
[1733233823219,33.58327971,222.08,221.89,33.58327971]
[1733233823513,2.2517,222.02,221.89,2.2529]
[1733233823710,33.58327971,222.04,221.89,2.2529]
[1733233823909,2.8042,222.07,221.93,2.2525]
[1733233824109,3.26,222.06,221.93,33.58327971]
[1733233824306,2.2515,222.04,221.92,3.26]
[1733233824510,3.26,222.06,221.92,3.26]
[1733233824716,2.8042,222.07,221.92,3.26]
[1733233825007,3.26,222.05,221.92,3.26]
[1733233825218,3.26,222.05,221.95,2.2523]
[1733233825409,3.26,222.07,221.92,3.26]
[1733233825605,33.58327971,222.08,221.92,3.26]
[1733233825912,307.59170358,222.15,222.03,33.58327971]
[1733233826708,2.2505,222.14,222.02,3.26]
[1733233827014,307.59170358,222.15,221.94,33.58327971]
[1733233827015,33.58327971,222.13,221.94,33.58327971]
[1733233827212,2.2509,222.1,221.97,2.2522]
[1733233827510,307.59170358,222.13,222.01,33.58327971]
[1733233827715,307.59170358,222.13,222.05,33.58327971]
[1733233827911,2.2499,222.2,222.1,2.2508]
[1733233828213,310.85170358,222.21,222.06,3.26]
[1733233828609,301.85170358,222.21,222.09,33.58327971]
[1733233828806,301.85170358,222.21,222.06,3.26]
[1733233829014,292.85170358,222.21,222.12,2.2506]
[1733233829210,292.85170358,222.21,222.09,33.58327971]
[1733233829512,287.85170358,222.21,222.15,2.2503]
[1733233829808,365.06706733,222.32,222.17,33.58327971]
[1733233830017,365.06706733,222.32,222.13,36.84327971]
[1733233830209,33.58327971,222.31,222.13,36.84327971]
[1733233831115,365.06706733,222.32,222.13,3.26]
[1733233831315,4.5934,222.36,222.2,33.58327971]
[1733233831613,4.5934,222.36,222.2,36.84327971]
[1733233831807,312.21615521,222.41,222.24,33.58327971]
[1733233832206,33.58327971,222.39,222.2,36.84327971]
[1733233832807,312.21615521,222.41,222.24,33.58327971]
[1733233833416,312.21615521,222.41,222.2,36.84327971]
[1733233833417,33.58327971,222.39,222.2,36.84327971]
[1733233834015,2.2489,222.3,222.21,2.2497]
[1733233834212,3.26,222.34,222.2,36.84327971]
[1733233834414,308.95615521,222.41,222.24,33.58327971]
[1733233835118,1.2914,222.41,222.24,33.58327971]
[1733233835316,2.2481,222.38,222.27,2.2491]
[1733233835619,1.2914,222.41,222.24,33.58327971]
[1733233835820,33.58327971,222.4,222.2,33.58327971]
[1733233836011,33.58327971,222.36,222.16,34.88867971]
[1733233836214,33.58327971,222.31,222.12,33.58327971]
[1733233836417,33.58327971,222.27,222.08,33.58327971]
[1733233836615,33.58327971,222.27,222.09,6.09275937]
[1733233836811,2.8055,222.26,222.08,33.58327971]
[1733233837020,33.58327971,222.19,221.98,33.58327971]
[1733233837317,33.58327971,222.15,221.94,33.58327971]
[1733233837512,33.58327971,222.15,221.97,2.2521]
[1733233837513,2.2513,222.06,221.97,2.2521]
[1733233837709,2.2513,222.06,221.94,33.58327971]
[1733233837710,3.26,222.07,221.94,33.58327971]
[1733233838013,3.26,222.06,221.9,33.58327971]
[1733233838213,3.26,222.06,221.91,4.97056052]
[1733233838416,3.26,222.06,221.91,1.12693793]
[1733233838915,3.26,222.06,221.82,38.08776604]
[1733233838916,33.58327971,222.03,221.82,38.08776604]
[1733233839219,2.2525,221.94,221.82,35.83687971]
[1733233839420,3.26,222.01,221.86,33.58327971]
[1733233839820,3.26,222.01,221.87,2.2532]
[1733233840423,33.58327971,222.0,221.79,36.84327971]
[1733233840720,33.58327971,222.0,221.83,33.58327971]
[1733233840930,33.58327971,222.0,221.83,2.2535]
[1733233841224,3.26,221.99,221.83,2.2535]
[1733233841413,2.252,221.99,221.87,2.2531]
[1733233841616,3.26,221.99,221.86,33.58327971]
[1733233841818,3.26,221.99,221.82,33.58327971]
[1733233842523,2.2526,221.93,221.82,35.83687971]
[1733233842719,3.26,221.92,221.78,33.58327971]
[1733233843020,3.26,221.91,221.74,33.58327971]
[1733233843219,3.26,221.91,221.71,2.7175]
[1733233843423,33.58327971,221.88,221.71,2.7175]
[1733233843923,33.58327971,221.88,221.71,1.3625]
[1733233844122,33.58327971,221.88,221.7,33.58327971]
[1733233844325,2.2541,221.79,221.68,2.2551]
[1733233844516,3.26,221.8,221.66,0.38543908]
[1733233844716,3.26,221.79,221.72,2.25551248]
[1733233844924,3.26,221.78,221.72,2.25551248]
[1733233845519,3.26,221.88,221.72,35.83879219]
[1733233845721,3.26,221.88,221.72,33.58327971]
[1733233845920,2.2536,221.84,221.73,2.2545]
[1733233846225,3.26,221.88,221.73,2.2545]
[1733233846525,1.3488,221.9,221.76,33.58327971]
[1733233846726,2.2531,221.88,221.77,2.2542]
[1733233846927,1.3488,221.9,221.76,33.58327971]
[1733233847426,2.2531,221.88,221.77,2.2542]
[1733233847626,1.3529,221.99,221.8,33.58327971]
[1733233847825,1.3529,221.99,221.81,3.4]
[1733233848621,1.3529,221.99,221.84,33.58327971]
[1733233849023,1.3529,221.99,221.81,3.4]
[1733233849630,2.253,221.9,221.81,3.4]
[1733233849829,3.4,221.93,221.81,3.4]
[1733233850130,2.253,221.89,221.81,3.4]
[1733233851031,3.4,221.93,221.76,34.93017971]
[1733233851231,33.58327971,221.92,221.76,33.58327971]
[1733233851526,2.2535,221.85,221.76,33.58327971]
[1733233851728,33.58327971,221.92,221.76,33.58327971]
[1733233851927,3.4,221.93,221.76,33.58327971]
[1733233852131,3.4,221.93,221.79,2.2539]
[1733233852330,3.4,221.93,221.76,33.58327971]
[1733233852631,2.2527,221.92,221.8,2.2538]
[1733233852826,3.4,221.97,221.8,33.58327971]
[1733233853226,3.4,221.97,221.77,3.4]
[1733233854125,3.4,221.97,221.67,0.38806031]
[1733233854126,3.4,221.97,221.72,33.58327971]
[1733233854330,33.58327971,221.9,221.72,33.58327971]
[1733233854531,3.4,221.89,221.72,33.58327971]
[1733233854733,33.58327971,221.86,221.68,33.58327971]
[1733233854937,2.2541,221.78,221.68,35.83837971]
[1733233855132,3.4,221.81,221.68,33.58327971]
[1733233856035,1.3342,221.88,221.72,33.58327971]
[1733233856036,3.4,221.87,221.72,33.58327971]
[1733233856224,3.4,221.87,221.72,36.98327971]
[1733233856933,2.254,221.79,221.72,36.98327971]
[1733233857134,3.4,221.87,221.68,33.58327971]
[1733233857432,2.2543,221.76,221.68,33.58327971]
[1733233857935,3.4,221.79,221.68,33.58327971]
[1733233857936,2.2544,221.75,221.68,33.58327971]
[1733233858230,3.4,221.79,221.68,33.58327971]
[1733233859231,2.2542,221.77,221.68,33.58327971]
[1733233859433,3.4,221.79,221.68,33.58327971]
[1733233859930,3.4,221.79,221.66,2.7734]
[1733233860138,3.4,221.85,221.68,33.58327971]
[1733233860341,3.4,221.85,221.73,2.2546]
[1733233860531,3.4,221.85,221.68,36.98327971]
[1733233860732,3.4,221.85,221.68,3.4]
[1733233861033,3.4,221.85,221.71,33.58327971]
[1733233861239,1.32,221.86,221.75,33.58327971]
[1733233861834,1.32,221.86,221.71,33.58327971]
[1733233862638,4.7342,221.88,221.71,33.58327971]
[1733233863638,4.7342,221.88,221.75,33.58327971]
[1733233863834,3.4,221.88,221.75,33.58327971]
[1733233864238,2.2534,221.85,221.75,36.98327971]
[1733233864435,3.4,221.91,221.75,36.98327971]
[1733233864637,1.3797,221.97,221.79,33.58327971]
[1733233864845,67.03351978,222.05,221.83,33.58327971]
[1733233864846,3.4,222.0,221.83,33.58327971]
[1733233865038,3.4,222.0,221.83,36.98327971]
[1733233865340,3.4,222.0,221.81,1.3833]
[1733233865341,33.58327971,221.98,221.81,1.3833]
[1733233865937,33.58327971,221.98,221.69,6.33933855]
[1733233865938,33.58327971,221.94,221.75,33.58327971]
[1733233866134,33.58327971,221.9,221.71,33.58327971]
[1733233866332,33.58327971,221.86,221.68,1.3833]
[1733233866532,3.4,221.85,221.69,3.17024375]
[1733233866735,3.4,221.85,221.66,1.4157]
[1733233866736,2.2548,221.71,221.66,1.4157]
[1733233867136,3.4,221.78,221.66,1.4157]
[1733233867337,2.2549,221.71,221.61,36.98327971]
[1733233867631,3.4,221.78,221.61,36.98327971]
[1733233867832,2.7156,221.85,221.65,33.58327971]
[1733233868833,33.58327971,221.9,221.73,33.58327971]
[1733233869032,33.58327971,221.9,221.74,3.4]
[1733233869540,2.2542,221.77,221.69,35.83827971]
[1733233869741,3.4,221.83,221.68,3.4]
[1733233869940,33.58327971,221.82,221.68,3.4]
[1733233870143,3.4,221.83,221.68,3.4]
[1733233870437,33.58327971,221.9,221.69,33.58327971]
[1733233870643,2.2534,221.86,221.77,2.2541]
[1733233870942,33.58327971,221.9,221.75,3.4]
[1733233871143,2.2536,221.84,221.76,2.2543]
[1733233871340,33.58327971,221.9,221.74,2.6569]
[1733233871537,33.58327971,221.86,221.74,2.6569]
[1733233871733,2.2535,221.84,221.76,2.2543]
[1733233872041,2.2535,221.84,221.74,2.6569]
[1733233872042,3.4,221.87,221.74,2.6569]
[1733233872743,2.2539,221.8,221.74,2.6569]
[1733233872943,33.58327971,221.86,221.65,33.58327971]
[1733233873141,33.58327971,221.82,221.63,3.4]
[1733233873342,2.2545,221.74,221.65,2.2554]
[1733233873542,3.4,221.79,221.63,3.4]
[1733233873739,3.4,221.79,221.69,0.38927877]
[1733233874045,33.58327971,221.78,221.6,2.607]
[1733233874342,33.58327971,221.78,221.61,36.98327971]
[1733233874543,2.2548,221.71,221.61,36.98327971]
[1733233874741,33.58327971,221.78,221.61,36.98327971]
[1733233874941,3.4,221.79,221.61,36.98327971]
[1733233874942,33.58327971,221.82,221.61,36.98327971]
[1733233875445,33.58327971,221.78,221.61,36.98327971]
[1733233875743,33.58327971,221.78,221.61,33.58327971]
[1733233875942,33.58327971,221.78,221.6,2.607]
[1733233876148,33.58327971,221.78,221.64,2.2555]
[1733233876346,33.58327971,221.78,221.61,33.58327971]
[1733233876642,2.2546,221.74,221.61,33.58327971]
[1733233876945,33.58327971,221.78,221.61,33.58327971]
[1733233877344,33.58327971,221.78,221.61,3.44]
[1733233878241,33.58327971,221.78,221.62,33.58327971]
[1733233878439,306.90306046,221.81,221.67,2.2552]
[1733233878649,306.90306046,221.81,221.62,33.58327971]
[1733233879045,306.90306046,221.81,221.66,2.2553]
[1733233879344,306.90306046,221.81,221.66,33.58327971]
[1733233879547,3.44,221.84,221.66,33.58327971]
[1733233879744,3.44,221.84,221.62,33.58327971]
[1733233880153,33.58327971,221.79,221.6,2.607]
[1733233880344,3.44,221.84,221.6,2.607]
[1733233880345,33.58327971,221.75,221.6,2.607]
[1733233880545,3.44,221.74,221.6,2.607]
[1733233881745,2.2556,221.64,221.6,2.607]
[1733233881945,3.44,221.74,221.6,2.607]
[1733233882845,3.44,221.74,221.55,1.2896]
[1733233883047,3.44,221.74,221.58,33.58327971]
[1733233883452,3.44,221.74,221.59,3.44]
[1733233884052,3.44,221.74,221.6,2.2559]
[1733233884350,306.90306046,221.75,221.62,33.58327971]
[1733233884549,306.90306046,221.75,221.59,3.44]
[1733233884946,2.2558,221.62,221.59,3.44]
[1733233885149,3.44,221.72,221.55,1.2896]
[1733233885747,2.2555,221.65,221.58,2.256]
[1733233886051,3.44,221.72,221.55,1.2896]
[1733233886357,2.2556,221.64,221.55,1.2896]
[1733233886556,3.44,221.72,221.55,1.2896]
[1733233886951,33.58327971,221.7,221.55,1.2896]
[1733233887152,33.58327971,221.7,221.53,3.44]
[1733233887453,3.44,221.72,221.52,2.7966]
[1733233887454,33.58327971,221.66,221.52,2.7966]
[1733233887655,3.44,221.65,221.52,2.7966]
[1733233888452,2.2563,221.57,221.52,2.7966]
[1733233888653,3.44,221.65,221.52,2.7966]
[1733233889657,33.58327971,221.62,221.46,44.69125267]
[1733233889951,33.58327971,221.62,221.46,11.10797296]
[1733233890654,2.257,221.5,221.46,11.10797296]
[1733233890953,3.44,221.56,221.46,11.10797296]
[1733233891857,2.257,221.5,221.46,11.10797296]
[1733233892051,3.44,221.56,221.46,11.10797296]
[1733233892252,2.2566,221.53,221.46,13.36527296]
[1733233892453,3.44,221.59,221.46,11.10797296]
[1733233893150,33.58327971,221.58,221.46,11.10797296]
[1733233893455,2.2572,221.48,221.46,11.10797296]
[1733233893659,33.58327971,221.58,221.46,11.10797296]
[1733233894153,2.2573,221.47,221.46,11.10797296]
[1733233894358,33.58327971,221.58,221.46,11.10797296]
[1733233894653,2.2573,221.47,221.46,11.10797296]
[1733233894849,3.44,221.47,221.31,33.58327971]
[1733233895058,2.2577,221.43,221.35,2.2585]
[1733233895253,3.44,221.47,221.31,33.58327971]
[1733233895652,3.44,221.47,221.33,2.2587]
[1733233896055,33.58327971,221.42,221.13,6.29680475]
[1733233896353,33.58327971,221.42,221.21,33.58327971]
[1733233896354,33.58327971,221.38,221.21,33.58327971]
[1733233896552,3.68,221.41,221.21,33.58327971]
[1733233896753,2.2585,221.35,221.23,2.2597]
[1733233896962,3.68,221.41,221.23,2.2597]
[1733233897153,3.68,221.41,221.21,33.58327971]
[1733233897357,33.58327971,221.38,221.21,33.58327971]
[1733233897656,33.58327971,221.34,221.19,2.8365]
[1733233897860,2.2594,221.27,221.19,2.8365]
[1733233898256,3.68,221.33,221.19,2.8365]
[1733233898458,33.58327971,221.34,221.19,2.8365]
[1733233898757,3.68,221.36,221.19,2.8365]
[1733233898958,33.58327971,221.34,221.19,2.8365]
[1733233899655,2.2593,221.27,221.19,2.8365]
[1733233899863,33.58327971,221.34,221.19,2.8365]
[1733233900360,2.2594,221.26,221.19,2.8365]
[1733233900963,3.68,221.33,221.19,2.8365]
[1733233902264,2.2596,221.24,221.19,2.8365]
[1733233902466,3.68,221.33,221.19,2.8365]
[1733233902959,2.2597,221.23,221.19,2.8365]
[1733233903159,3.68,221.33,221.19,2.8365]
[1733233903459,2.2598,221.23,221.19,2.8365]
[1733233903662,3.68,221.33,221.19,2.8365]
[1733233904063,2.2598,221.22,221.19,2.8365]
[1733233904364,3.68,221.33,221.19,2.8365]
[1733233904666,2.2598,221.22,221.19,2.8365]
[1733233904960,3.68,221.33,221.19,2.8365]
[1733233905163,33.58327971,221.3,221.19,1.492]
[1733233905361,33.58327971,221.3,221.14,1.4896]
[1733233905557,20.73169217,221.32,221.14,23.74469217]
[1733233906263,22.22039217,221.32,221.14,23.74469217]
[1733233906460,20.73169217,221.28,221.12,1.4656]
[1733233906656,2.2597,221.24,221.12,1.4656]
[1733233906963,3.68,221.24,221.12,1.4656]
[1733233907160,2.2603,221.17,221.12,1.4656]
[1733233907357,3.68,221.24,221.12,1.4656]
[1733233907764,3.68,221.27,221.12,1.4656]
[1733233907963,20.73169217,221.31,221.12,1.4656]
[1733233907964,3.68,221.26,221.12,1.4656]
[1733233908659,2.2604,221.16,221.12,1.4656]
[1733233908861,3.68,221.3,221.12,1.4656]
[1733233909066,2.26,221.21,221.12,3.7263]
[1733233909260,3.68,221.3,221.12,1.4656]
[1733233910871,2.2603,221.18,221.12,1.4656]
[1733233911065,3.68,221.23,221.12,1.4656]
[1733233911270,3.68,221.28,221.12,1.4656]
[1733233911771,2.2597,221.24,221.12,1.4656]
[1733233912074,3.68,221.28,221.12,1.4656]
[1733233912974,2.2604,221.17,221.12,1.4656]
[1733233913174,3.68,221.28,221.12,1.4656]
[1733233913472,2.2605,221.16,221.12,1.4656]
[1733233913672,3.68,221.28,221.12,1.4656]
[1733233914078,2.26,221.21,221.12,1.4656]
[1733233914371,3.68,221.21,221.08,20.73169217]
[1733233914769,2.2607,221.14,221.08,20.73169217]
[1733233914974,20.73169217,221.24,221.08,20.73169217]
[1733233915174,3.68,221.19,221.08,20.73169217]
[1733233915375,2.2607,221.13,221.08,20.73169217]
[1733233916171,3.68,221.19,221.06,1.4512]
[1733233916875,3.68,221.19,221.05,1.5234]
[1733233917179,3.68,221.19,220.99,20.73169217]
[1733233917674,20.73169217,221.16,220.99,22.99379217]
[1733233917871,20.73169217,221.16,220.99,20.73169217]
[1733233918071,3.68,221.15,220.99,20.73169217]
[1733233918271,3.68,221.14,220.99,20.73169217]
[1733233918679,3.68,221.13,220.99,20.73169217]
[1733233918887,2.2614,221.07,220.99,20.73169217]
[1733233919082,20.73169217,221.2,220.99,20.73169217]
[1733233919280,3.68,221.19,221.04,2.2616]
[1733233919488,3.68,221.19,220.99,24.41169217]
[1733233920290,11.2835,221.53,220.99,24.41169217]
[1733233920485,20.73169217,221.24,221.06,20.73169217]
[1733233920691,20.73169217,221.24,221.07,3.68]
[1733233920893,20.73169217,221.24,221.07,5.9413]
[1733233921390,20.73169217,221.24,221.06,20.73169217]
[1733233921588,20.73169217,221.2,221.02,20.73169217]
[1733233923598,2.2609,221.11,221.02,20.73169217]
[1733233923891,20.73169217,221.2,221.02,20.73169217]
[1733233924799,2.2613,221.08,221.02,20.73169217]
[1733233925000,20.73169217,221.2,221.02,20.73169217]
[1733233925600,20.73169217,221.2,221.05,2.2615]
[1733233926102,20.73169217,221.2,221.03,2.2617]
[1733233926300,20.73169217,221.2,221.02,20.73169217]
[1733233926496,2.2614,221.07,221.0,1.0]
[1733233926797,3.54,221.15,221.02,20.73169217]
[1733233927702,2.2609,221.12,221.01,2.2619]
[1733233927892,3.54,221.15,221.0,1.0]
[1733233928792,3.54,221.15,221.01,2.2619]
[1733233928991,3.54,221.15,221.0,1.0]
[1733233929196,1.5844,221.14,221.0,1.0]
[1733233929798,4.1165,221.14,221.0,1.0]
[1733233929994,2.2613,221.08,221.01,2.2619]
[1733233930296,3.54,221.15,221.02,20.73169217]
[1733233930697,3.54,221.15,221.0,1.0]
[1733233930895,2.5321,221.19,221.02,20.73169217]
[1733233931101,3.54,221.18,221.05,2.2614]
[1733233931304,3.54,221.18,221.02,20.73169217]
[1733233931707,2.2614,221.07,221.0,6.802]
[1733233932003,2.2614,221.07,221.0,4.54]
[1733233932204,3.54,221.18,221.0,4.54]
[1733233932506,5.75246665,221.18,221.0,1.0]
[1733233932695,20.73169217,221.16,221.0,1.0]
[1733233933205,20.73169217,221.16,221.01,2.2619]
[1733233933403,20.73169217,221.16,221.0,1.0]
[1733233933597,5.75246665,221.18,221.02,22.99349217]
[1733233934005,3.54,221.18,221.02,20.73169217]
[1733233934202,3.54,221.18,221.03,2.2617]
[1733233934398,20.73169217,221.16,221.0,1.0]
[1733233934599,2.2617,221.04,221.0,1.0]
[1733233934906,3.54,221.07,221.0,1.0]
[1733233935709,2.2618,221.03,221.0,1.0]
[1733233935905,3.54,221.07,221.0,1.0]
[1733233936304,3.54,221.07,221.01,3.07697026]
[1733233936501,3.54,221.07,221.0,1.0]
[1733233936809,2.262,221.01,221.0,1.0]
[1733233937111,2.262,221.01,221.0,4.07694138]
[1733233937302,2.262,221.01,221.0,4.08040315]
[1733233937704,1.5609,221.06,221.0,4.08040315]
[1733233937906,2.2619,221.02,221.01,3.08040315]
[1733233938305,2.2618,221.02,221.01,3.08452552]
[1733233939109,3.54,221.08,221.01,3.08452552]
[1733233939311,3.54,221.08,221.0,1.0]
[1733233939613,2.262,221.01,221.0,1.0]
[1733233939903,24.27169217,221.08,221.0,1.0]
[1733233941303,2.262,221.01,221.0,1.0]
[1733233942813,2.263,220.92,220.87,1.5946]
[1733233943009,3.54,221.01,220.88,8.0494262]
[1733233943303,2.2627,220.95,220.89,3.09593315]
[1733233943504,2.2627,220.95,220.9,3.09593315]
[1733233943811,3.54,221.01,220.87,1.5946]
[1733233944007,3.54,221.01,220.88,3.09484498]
[1733233944308,2.2632,220.9,220.87,1.5946]
[1733233944507,20.73169217,221.0,220.87,1.5946]
[1733233944707,20.73169217,221.0,220.82,3.0369]
[1733233944909,2.2634,220.87,220.83,3.09464148]
[1733233945211,20.73169217,221.0,220.82,3.0369]
[1733233945411,2.2634,220.87,220.82,3.0369]
[1733233946215,20.73169217,221.0,220.82,3.0369]
[1733233947114,2.2633,220.88,220.82,3.0369]
[1733233947312,3.54,220.99,220.82,1.5264]
[1733233947615,3.54,220.99,220.81,22.22119217]
[1733233947814,2.2635,220.86,220.81,2.9911]
[1733233948014,20.73169217,220.96,220.81,2.9911]
[1733233948710,3.54,220.99,220.81,2.9911]
[1733233949011,20.73169217,220.95,220.81,2.9911]
[1733233949614,2.2635,220.86,220.81,2.9911]
[1733233949812,20.73169217,220.95,220.81,2.9911]
[1733233950613,2.2641,220.8,220.71,3.54]
[1733233950819,2.2641,220.8,220.73,1.49]
[1733233951119,3.54,220.88,220.73,1.49]
[1733233951321,3.54,220.87,220.73,1.49]
[1733233951513,20.73169217,220.91,220.75,2.2646]
[1733233951718,3.54,220.9,220.74,20.73169217]
[1733233952308,2.2642,220.79,220.73,1.49]
[1733233952509,3.54,220.9,220.73,1.49]
[1733233952815,2.2644,220.77,220.73,1.49]
[1733233953412,20.73169217,220.88,220.73,1.49]
[1733233953808,20.73169217,220.84,220.73,1.49]
[1733233954017,2.2647,220.74,220.73,1.49]
[1733233954215,3.56,220.83,220.73,1.49]
[1733233954416,3.56,220.82,220.67,3.56]
[1733233954618,3.56,220.82,220.67,5.0863]
[1733233955120,2.2643,220.78,220.67,5.0863]
[1733233955316,3.56,220.82,220.67,5.0863]
[1733233955615,2.2648,220.73,220.67,1.5263]
[1733233955919,3.56,220.82,220.67,1.5263]
[1733233956318,2.2651,220.71,220.67,1.5263]
[1733233956620,20.73169217,220.8,220.67,1.5263]
[1733233956920,20.73169217,220.8,220.62,20.73169217]
[1733233957115,20.73169217,220.8,220.62,1.71169217]
[1733233957319,20.73169217,220.65,220.49,1.81380092]
[1733233957525,20.73169217,220.65,220.5,3.07855702]
[1733233957526,3.64,220.64,220.5,3.07855702]
[1733233957716,3.64,220.64,220.51,6.08715702]
[1733233958018,3.64,220.64,220.45,1.518]
[1733233958019,20.73169217,220.61,220.47,1.13376592]
[1733233958212,3.64,220.6,220.48,8.00479382]
[1733233958414,2.2667,220.55,220.47,1.5117]